[Event "Titled Tuesday Blitz January 03 Late 2023"]
[White "Rangel, Daniel"]
[Black "Lenderman, Aleksandr"]
[WhiteFideId "2124475"]
[BlackFideId "2021285"]
[WhiteElo "2207"]
[BlackElo "2572"]
[Result "1/2-1/2"]
[Round "03"]
[TimeControl "180+2"]
[Date "2023.01.03"]
[WhiteClock "0:00:20"]
[BlackClock "0:00:29"]

1. c4 {[%clk 0:03:00]}  b6 {[%clk 0:02:59]} 2. Nc3 {[%clk 0:02:57]}  Bb7 {[%clk 0:03:00]} 3. e4 {[%clk 0:02:57]}  e6 {[%clk 0:03:00]} 4. g3 {[%clk 0:02:56]}  f5 {[%clk 0:02:59]} 5. Bg2 {[%clk 0:02:56]}  Nf6 {[%clk 0:02:59]} 6. d3 {[%clk 0:02:56]}  Bc5 {[%clk 0:02:53]} 7. Nge2 {[%clk 0:02:54]}  fxe4 {[%clk 0:02:52]} 8. Nxe4 {[%clk 0:02:53]}  Nxe4 {[%clk 0:02:52]} 9. dxe4 {[%clk 0:02:52]}  O-O {[%clk 0:02:52]} 10. O-O {[%clk 0:02:52]}  Nc6 {[%clk 0:02:52]} 11. Nf4 {[%clk 0:02:44]}  Ne5 {[%clk 0:02:47]} 12. b3 {[%clk 0:02:39]}  Qf6 {[%clk 0:02:23]} 13. Rb1 {[%clk 0:02:33]}  Rad8 {[%clk 0:02:22]} 14. Bb2 {[%clk 0:02:32]}  d6 {[%clk 0:02:06]} 15. Kh1 {[%clk 0:02:27]}  Qh6 {[%clk 0:02:03]} 16. Qe2 {[%clk 0:01:56]}  Rxf4 {[%clk 0:01:57]} 17. gxf4 {[%clk 0:01:53]}  Qxf4 {[%clk 0:01:58]} 18. Bxe5 {[%clk 0:01:43]}  dxe5 {[%clk 0:01:56]} 19. Rbd1 {[%clk 0:01:40]}  Bd4 {[%clk 0:01:56]} 20. f3 {[%clk 0:01:35]}  Rf8 {[%clk 0:01:53]} 21. Bh3 {[%clk 0:01:34]}  Rf6 {[%clk 0:01:53]} 22. Rg1 {[%clk 0:00:53]}  Bxg1 {[%clk 0:01:52]} 23. Rxg1 {[%clk 0:00:54]}  Qxf3+ {[%clk 0:01:50]} 24. Qxf3 {[%clk 0:00:55]}  Rxf3 {[%clk 0:01:51]} 25. Bxe6+ {[%clk 0:00:55]}  Kf8 {[%clk 0:01:51]} 26. Bd5 {[%clk 0:00:53]}  Bxd5 {[%clk 0:01:51]} 27. cxd5 {[%clk 0:00:52]}  Ke7 {[%clk 0:01:50]} 28. Rxg7+ {[%clk 0:00:51]}  Kd6 {[%clk 0:01:46]} 29. Rxh7 {[%clk 0:00:48]}  Rf4 {[%clk 0:01:45]} 30. Rh6+ {[%clk 0:00:44]}  Kd7 {[%clk 0:01:46]} 31. Rh7+ {[%clk 0:00:45]}  Kc8 {[%clk 0:01:46]} 32. h4 {[%clk 0:00:39]}  Rxe4 {[%clk 0:01:46]} 33. h5 {[%clk 0:00:40]}  Rg4 {[%clk 0:01:37]} 34. Kh2 {[%clk 0:00:33]}  e4 {[%clk 0:01:36]} 35. Kh3 {[%clk 0:00:33]}  Rg5 {[%clk 0:01:35]} 36. Kh4 {[%clk 0:00:33]}  Re5 {[%clk 0:01:23]} 37. Rg7 {[%clk 0:00:28]}  e3 {[%clk 0:01:20]} 38. Rg1 {[%clk 0:00:28]}  e2 {[%clk 0:01:11]} 39. Re1 {[%clk 0:00:27]}  Kd7 {[%clk 0:01:12]} 40. h6 {[%clk 0:00:28]}  Re8 {[%clk 0:01:06]} 41. Kg5 {[%clk 0:00:26]}  Kd6 {[%clk 0:01:02]} 42. Kg6 {[%clk 0:00:25]}  Rg8+ {[%clk 0:00:44]} 43. Kf7 {[%clk 0:00:24]}  Rg2 {[%clk 0:00:43]} 44. h7 {[%clk 0:00:24]}  Rf2+ {[%clk 0:00:43]} 45. Kg7 {[%clk 0:00:23]}  Rg2+ {[%clk 0:00:43]} 46. Kf7 {[%clk 0:00:23]}  Rh2 {[%clk 0:00:42]} 47. Kg7 {[%clk 0:00:21]}  Rg2+ {[%clk 0:00:32]} 48. Kf8 {[%clk 0:00:20]}  Rh2 {[%clk 0:00:29]} 49. Kg8 {[%clk 0:00:20]}  Rg2+ {[%clk 0:00:29]} 50. Kf7 {[%clk 0:00:20]} 1/2-1/2


[Site "https://www.chess.com"]

[Event "Titled Tuesday Blitz January 03 Late 2023"]
[White "Suvorov, Alexander"]
[Black "Zierk, Steven"]
[WhiteFideId "12977063"]
[BlackFideId "2034255"]
[WhiteElo "2338"]
[BlackElo "2488"]
[Result "0-1"]
[Round "03"]
[TimeControl "180+2"]
[Date "2023.01.03"]
[WhiteClock "0:00:07"]
[BlackClock "0:00:10"]

1. Nf3 {[%clk 0:03:00]}  e6 {[%clk 0:02:59]} 2. c4 {[%clk 0:02:59]}  f5 {[%clk 0:02:59]} 3. g3 {[%clk 0:02:56]}  Nf6 {[%clk 0:02:58]} 4. Bg2 {[%clk 0:02:56]}  d5 {[%clk 0:02:52]} 5. O-O {[%clk 0:02:56]}  Bd6 {[%clk 0:02:51]} 6. b3 {[%clk 0:02:57]}  O-O {[%clk 0:02:50]} 7. Bb2 {[%clk 0:02:57]}  c6 {[%clk 0:02:49]} 8. d4 {[%clk 0:02:53]}  Qe7 {[%clk 0:02:43]} 9. Ne5 {[%clk 0:02:52]}  a5 {[%clk 0:02:27]} 10. Nd2 {[%clk 0:02:42]}  b6 {[%clk 0:02:22]} 11. Rc1 {[%clk 0:02:41]}  Bb7 {[%clk 0:02:21]} 12. Ndf3 {[%clk 0:02:31]}  Ne4 {[%clk 0:02:19]} 13. Nd3 {[%clk 0:02:29]}  Nd7 {[%clk 0:02:15]} 14. e3 {[%clk 0:02:29]}  g5 {[%clk 0:02:10]} 15. Nfe5 {[%clk 0:02:27]}  g4 {[%clk 0:02:09]} 16. cxd5 {[%clk 0:02:20]}  cxd5 {[%clk 0:02:09]} 17. Nxd7 {[%clk 0:02:13]}  Qxd7 {[%clk 0:02:09]} 18. Ne5 {[%clk 0:02:14]}  Qb5 {[%clk 0:01:59]} 19. f3 {[%clk 0:01:46]}  gxf3 {[%clk 0:01:57]} 20. Bxf3 {[%clk 0:01:47]}  Rac8 {[%clk 0:01:50]} 21. Rxc8 {[%clk 0:01:25]}  Bxc8 {[%clk 0:01:46]} 22. g4 {[%clk 0:01:21]}  Ba6 {[%clk 0:01:44]} 23. Bg2 {[%clk 0:01:13]}  Qe8 {[%clk 0:01:16]} 24. Rf3 {[%clk 0:01:09]}  Ng5 {[%clk 0:01:02]} 25. Rf2 {[%clk 0:00:59]}  Bxe5 {[%clk 0:00:57]} 26. dxe5 {[%clk 0:00:58]}  Qg6 {[%clk 0:00:58]} 27. h4 {[%clk 0:00:29]}  Ne4 {[%clk 0:00:55]} 28. Bxe4 {[%clk 0:00:29]}  dxe4 {[%clk 0:00:46]} 29. Rg2 {[%clk 0:00:20]}  f4 {[%clk 0:00:43]} 30. exf4 {[%clk 0:00:19]}  Rxf4 {[%clk 0:00:44]} 31. Bc1 {[%clk 0:00:20]}  Rf1+ {[%clk 0:00:43]} 32. Qxf1 {[%clk 0:00:19]}  Bxf1 {[%clk 0:00:44]} 33. Kxf1 {[%clk 0:00:20]}  Qg7 {[%clk 0:00:37]} 34. Bf4 {[%clk 0:00:18]}  Qc7 {[%clk 0:00:33]} 35. Rf2 {[%clk 0:00:17]}  h5 {[%clk 0:00:28]} 36. gxh5 {[%clk 0:00:17]}  Qc3 {[%clk 0:00:27]} 37. Kg2 {[%clk 0:00:16]}  b5 {[%clk 0:00:19]} 38. Bh6 {[%clk 0:00:14]}  Qxe5 {[%clk 0:00:17]} 39. Bg5 {[%clk 0:00:14]}  b4 {[%clk 0:00:15]} 40. h6 {[%clk 0:00:13]}  Qd5 {[%clk 0:00:14]} 41. Kg3 {[%clk 0:00:12]}  Qd3+ {[%clk 0:00:14]} 42. Kg4 {[%clk 0:00:11]}  e3 {[%clk 0:00:14]} 43. Rf3 {[%clk 0:00:10]}  Qe4+ {[%clk 0:00:13]} 44. Rf4 {[%clk 0:00:09]}  Qg2+ {[%clk 0:00:13]} 45. Kh5 {[%clk 0:00:09]}  Qe2+ {[%clk 0:00:10]} 46. Kg6 {[%clk 0:00:09]}  Qc2+ {[%clk 0:00:11]} 47. Kf6 {[%clk 0:00:08]}  e2 {[%clk 0:00:11]} 48. Ke7 {[%clk 0:00:08]}  Qc5+ {[%clk 0:00:10]} 49. Ke8 {[%clk 0:00:09]}  e1=Q {[%clk 0:00:10]} 50. Rf7 {[%clk 0:00:08]}  Qc8+ {[%clk 0:00:09]} 51. Ke7 {[%clk 0:00:07]}  Qc7+ {[%clk 0:00:10]} 0-1


[Site "https://www.chess.com"]

[Event "Titled Tuesday Blitz January 03 Late 2023"]
[White "Fiorito, Francisco"]
[Black "Indjic, Aleksandar"]
[WhiteFideId "180165"]
[BlackFideId "911925"]
[WhiteElo "2305"]
[BlackElo "2618"]
[Result "0-1"]
[Round "03"]
[TimeControl "180+2"]
[Date "2023.01.03"]
[WhiteClock "0:00:12"]
[BlackClock "0:00:45"]

1. e4 {[%clk 0:03:00]}  c5 {[%clk 0:02:58]} 2. d3 {[%clk 0:02:58]}  Nc6 {[%clk 0:02:54]} 3. g3 {[%clk 0:02:57]}  g6 {[%clk 0:02:53]} 4. Bg2 {[%clk 0:02:57]}  Bg7 {[%clk 0:02:53]} 5. f4 {[%clk 0:02:57]}  d6 {[%clk 0:02:50]} 6. Nf3 {[%clk 0:02:58]}  e6 {[%clk 0:02:50]} 7. O-O {[%clk 0:02:58]}  Nge7 {[%clk 0:02:50]} 8. c3 {[%clk 0:02:58]}  d5 {[%clk 0:02:48]} 9. e5 {[%clk 0:02:56]}  h5 {[%clk 0:02:46]} 10. Be3 {[%clk 0:02:56]}  b6 {[%clk 0:02:45]} 11. d4 {[%clk 0:02:54]}  Nf5 {[%clk 0:02:44]} 12. Bf2 {[%clk 0:02:54]}  Bf8 {[%clk 0:02:43]} 13. Re1 {[%clk 0:02:53]}  a5 {[%clk 0:02:33]} 14. h3 {[%clk 0:02:50]}  Be7 {[%clk 0:02:29]} 15. Nbd2 {[%clk 0:02:31]}  Ba6 {[%clk 0:02:27]} 16. Nb3 {[%clk 0:02:25]}  a4 {[%clk 0:02:26]} 17. Nbd2 {[%clk 0:02:25]}  Bd3 {[%clk 0:02:26]} 18. dxc5 {[%clk 0:02:17]}  Bxc5 {[%clk 0:02:19]} 19. Bxc5 {[%clk 0:02:16]}  bxc5 {[%clk 0:02:19]} 20. Kh2 {[%clk 0:02:16]}  Kf8 {[%clk 0:02:03]} 21. Nb3 {[%clk 0:02:12]}  axb3 {[%clk 0:01:58]} 22. Qxd3 {[%clk 0:02:12]}  c4 {[%clk 0:01:58]} 23. Qb1 {[%clk 0:02:10]}  bxa2 {[%clk 0:01:53]} 24. Rxa2 {[%clk 0:02:08]}  Kg7 {[%clk 0:01:52]} 25. Ng5 {[%clk 0:02:05]}  Qb6 {[%clk 0:01:50]} 26. Rxa8 {[%clk 0:01:53]}  Rxa8 {[%clk 0:01:48]} 27. Re2 {[%clk 0:01:48]}  Rb8 {[%clk 0:01:38]} 28. Qc1 {[%clk 0:01:47]}  h4 {[%clk 0:01:31]} 29. g4 {[%clk 0:01:45]}  Ng3 {[%clk 0:01:31]} 30. Rc2 {[%clk 0:01:43]}  d4 {[%clk 0:01:25]} 31. cxd4 {[%clk 0:01:37]}  Nxd4 {[%clk 0:01:23]} 32. Rxc4 {[%clk 0:01:37]}  Nde2 {[%clk 0:01:23]} 33. Qa1 {[%clk 0:01:23]}  Qf2 {[%clk 0:01:17]} 34. Rc7 {[%clk 0:01:14]}  Kg8 {[%clk 0:00:56]} 35. Rxf7 {[%clk 0:00:48]}  Nxf4 {[%clk 0:00:52]} 36. Qg1 {[%clk 0:00:32]}  Rxb2 {[%clk 0:00:50]} 37. Rxf4 {[%clk 0:00:13]}  Qxf4 {[%clk 0:00:49]} 38. Nxe6 {[%clk 0:00:12]}  Qxe5 {[%clk 0:00:47]} 39. Qd4 {[%clk 0:00:12]}  Nf1+ {[%clk 0:00:45]} 40. Kg1 {[%clk 0:00:13]}  Qh2+ {[%clk 0:00:45]} 41. Kxf1 {[%clk 0:00:12]}  Qxg2+ {[%clk 0:00:45]} 42. Ke1 {[%clk 0:00:12]}  Qe2# {[%clk 0:00:45]} 0-1


[Site "https://www.chess.com"]

[Event "Titled Tuesday Blitz January 03 Late 2023"]
[White "Chor, Kevin"]
[Black "Pakleza, Zbigniew"]
[WhiteFideId "2090740"]
[BlackFideId "1119290"]
[WhiteElo "1944"]
[BlackElo "2494"]
[Result "1-0"]
[Round "03"]
[TimeControl "180+2"]
[Date "2023.01.03"]
[WhiteClock "0:00:03"]
[BlackClock "0:00:01"]

1. e4 {[%clk 0:03:00]}  d6 {[%clk 0:03:00]} 2. d4 {[%clk 0:03:00]}  Nf6 {[%clk 0:03:00]} 3. Nc3 {[%clk 0:02:59]}  c6 {[%clk 0:03:01]} 4. f4 {[%clk 0:02:57]}  Qb6 {[%clk 0:03:01]} 5. Nf3 {[%clk 0:02:54]}  Bg4 {[%clk 0:03:01]} 6. Be2 {[%clk 0:02:54]}  Bxf3 {[%clk 0:03:00]} 7. Bxf3 {[%clk 0:02:55]}  e5 {[%clk 0:03:00]} 8. fxe5 {[%clk 0:02:47]}  dxe5 {[%clk 0:03:01]} 9. dxe5 {[%clk 0:02:29]}  Nfd7 {[%clk 0:03:01]} 10. e6 {[%clk 0:02:29]}  fxe6 {[%clk 0:03:02]} 11. Qe2 {[%clk 0:02:24]}  Na6 {[%clk 0:03:01]} 12. Bg4 {[%clk 0:02:12]}  Nac5 {[%clk 0:02:46]} 13. a3 {[%clk 0:02:07]}  a5 {[%clk 0:02:43]} 14. b3 {[%clk 0:01:57]}  Be7 {[%clk 0:02:18]} 15. Be3 {[%clk 0:01:50]}  Qc7 {[%clk 0:01:55]} 16. O-O {[%clk 0:01:39]}  Bf6 {[%clk 0:01:47]} 17. Rxf6 {[%clk 0:01:21]}  Nxf6 {[%clk 0:01:04]} 18. Bh5+ {[%clk 0:01:06]}  g6 {[%clk 0:00:49]} 19. Bxc5 {[%clk 0:00:55]}  Qe5 {[%clk 0:00:29]} 20. Qf2 {[%clk 0:00:38]}  Nxe4 {[%clk 0:00:16]} 21. Bd4 {[%clk 0:00:35]}  Nxf2 {[%clk 0:00:14]} 22. Bxe5 {[%clk 0:00:34]}  O-O {[%clk 0:00:15]} 23. Bf3 {[%clk 0:00:33]}  g5 {[%clk 0:00:09]} 24. Kxf2 {[%clk 0:00:20]}  g4 {[%clk 0:00:09]} 25. Ne4 {[%clk 0:00:21]}  gxf3 {[%clk 0:00:09]} 26. gxf3 {[%clk 0:00:22]}  Kf7 {[%clk 0:00:07]} 27. Nd6+ {[%clk 0:00:19]}  Ke7 {[%clk 0:00:07]} 28. Nxb7 {[%clk 0:00:19]}  Rg8 {[%clk 0:00:08]} 29. Nc5 {[%clk 0:00:17]}  Rg5 {[%clk 0:00:08]} 30. Bd6+ {[%clk 0:00:14]}  Kf7 {[%clk 0:00:07]} 31. Ne4 {[%clk 0:00:14]}  Rh5 {[%clk 0:00:06]} 32. Rd1 {[%clk 0:00:11]}  e5 {[%clk 0:00:07]} 33. Kg2 {[%clk 0:00:06]}  Rg8+ {[%clk 0:00:06]} 34. Ng3 {[%clk 0:00:06]}  Ke6 {[%clk 0:00:04]} 35. Bc5 {[%clk 0:00:06]}  Rhg5 {[%clk 0:00:02]} 36. Be3 {[%clk 0:00:06]}  R5g6 {[%clk 0:00:01]} 37. c4 {[%clk 0:00:06]}  h5 {[%clk 0:00:01]} 38. Kh3 {[%clk 0:00:03]}  h4 {[%clk 0:00:01]} 39. Kxh4 {[%clk 0:00:03]} 1-0


[Site "https://www.chess.com"]

[Event "Titled Tuesday Blitz January 03 Late 2023"]
[White "Chen, Justin"]
[Black "Martinez Reyes, Pedro Ramon"]
[WhiteFideId "2098199"]
[BlackFideId "3901807"]
[WhiteElo "2333"]
[BlackElo "2376"]
[Result "1-0"]
[Round "03"]
[TimeControl "180+2"]
[Date "2023.01.03"]
[WhiteClock "0:00:07"]
[BlackClock "0:00:10"]

1. c4 {[%clk 0:03:00]}  Nf6 {[%clk 0:02:57]} 2. Nc3 {[%clk 0:03:01]}  g6 {[%clk 0:02:55]} 3. g3 {[%clk 0:03:00]}  Bg7 {[%clk 0:02:55]} 4. Bg2 {[%clk 0:03:01]}  O-O {[%clk 0:02:55]} 5. d4 {[%clk 0:03:01]}  c5 {[%clk 0:02:49]} 6. dxc5 {[%clk 0:02:58]}  Na6 {[%clk 0:02:47]} 7. Nf3 {[%clk 0:02:54]}  Nxc5 {[%clk 0:02:47]} 8. O-O {[%clk 0:02:54]}  d6 {[%clk 0:02:47]} 9. Be3 {[%clk 0:02:54]}  Be6 {[%clk 0:02:42]} 10. b3 {[%clk 0:02:39]}  Qa5 {[%clk 0:02:32]} 11. Bd2 {[%clk 0:02:28]}  Qa6 {[%clk 0:02:30]} 12. Rc1 {[%clk 0:02:21]}  Nfe4 {[%clk 0:02:28]} 13. Nxe4 {[%clk 0:02:15]}  Nxe4 {[%clk 0:02:29]} 14. Ng5 {[%clk 0:02:11]}  Nxg5 {[%clk 0:02:26]} 15. Bxg5 {[%clk 0:02:12]}  Qxa2 {[%clk 0:02:26]} 16. Bxe7 {[%clk 0:02:04]}  Rfe8 {[%clk 0:02:25]} 17. Qxd6 {[%clk 0:01:44]}  Qxb3 {[%clk 0:02:15]} 18. Rb1 {[%clk 0:00:57]}  Qxc4 {[%clk 0:02:12]} 19. Bxb7 {[%clk 0:00:57]}  Rab8 {[%clk 0:02:05]} 20. Ba6 {[%clk 0:00:40]}  Rxb1 {[%clk 0:01:31]} 21. Bxc4 {[%clk 0:00:32]}  Rxf1+ {[%clk 0:01:31]} 22. Kxf1 {[%clk 0:00:33]}  Bxc4 {[%clk 0:01:28]} 23. Qd7 {[%clk 0:00:26]}  Rb8 {[%clk 0:01:03]} 24. Qc7 {[%clk 0:00:25]}  Rb1+ {[%clk 0:00:53]} 25. Kg2 {[%clk 0:00:25]}  Bd5+ {[%clk 0:00:54]} 26. f3 {[%clk 0:00:25]}  f5 {[%clk 0:00:17]} 27. Qd8+ {[%clk 0:00:12]}  Kf7 {[%clk 0:00:17]} 28. Bc5 {[%clk 0:00:08]}  Bc6 {[%clk 0:00:06]} 29. Qc7+ {[%clk 0:00:07]}  Kg8 {[%clk 0:00:05]} 30. Qxc6 {[%clk 0:00:06]}  Rb8 {[%clk 0:00:05]} 31. Bxa7 {[%clk 0:00:06]}  Rf8 {[%clk 0:00:05]} 32. Bc5 {[%clk 0:00:05]}  Rf7 {[%clk 0:00:05]} 33. Qe8+ {[%clk 0:00:06]}  Bf8 {[%clk 0:00:05]} 34. h4 {[%clk 0:00:04]}  Kg7 {[%clk 0:00:05]} 35. Bxf8+ {[%clk 0:00:05]}  Rxf8 {[%clk 0:00:06]} 36. Qe5+ {[%clk 0:00:05]}  Kg8 {[%clk 0:00:06]} 37. h5 {[%clk 0:00:06]}  gxh5 {[%clk 0:00:07]} 38. Kh3 {[%clk 0:00:06]}  Rf7 {[%clk 0:00:07]} 39. Kh4 {[%clk 0:00:06]}  f4 {[%clk 0:00:06]} 40. gxf4 {[%clk 0:00:05]}  h6 {[%clk 0:00:07]} 41. Kxh5 {[%clk 0:00:05]}  Kh7 {[%clk 0:00:05]} 42. Qe4+ {[%clk 0:00:05]}  Kg8 {[%clk 0:00:06]} 43. Qg6+ {[%clk 0:00:04]}  Kh8 {[%clk 0:00:05]} 44. Qxh6+ {[%clk 0:00:04]}  Kg8 {[%clk 0:00:04]} 45. Kg4 {[%clk 0:00:02]}  Rg7+ {[%clk 0:00:03]} 46. Qxg7+ {[%clk 0:00:03]}  Kxg7 {[%clk 0:00:03]} 47. f5 {[%clk 0:00:04]}  Kf6 {[%clk 0:00:03]} 48. e4 {[%clk 0:00:05]}  Ke5 {[%clk 0:00:04]} 49. Kg5 {[%clk 0:00:06]}  Kd6 {[%clk 0:00:04]} 50. f6 {[%clk 0:00:06]}  Ke6 {[%clk 0:00:05]} 51. Kg6 {[%clk 0:00:07]}  Kd7 {[%clk 0:00:05]} 52. f7 {[%clk 0:00:08]}  Ke7 {[%clk 0:00:06]} 53. Kg7 {[%clk 0:00:09]}  Ke6 {[%clk 0:00:07]} 54. f8=Q {[%clk 0:00:09]}  Ke5 {[%clk 0:00:07]} 55. Qf5+ {[%clk 0:00:10]}  Kd6 {[%clk 0:00:08]} 56. Qd5+ {[%clk 0:00:10]}  Ke7 {[%clk 0:00:09]} 57. e5 {[%clk 0:00:06]}  Ke8 {[%clk 0:00:09]} 58. Kf6 {[%clk 0:00:06]}  Kf8 {[%clk 0:00:10]} 59. Qf7# {[%clk 0:00:07]} 1-0


[Site "https://www.chess.com"]

[Event "Titled Tuesday Blitz January 03 Late 2023"]
[White "Jaferian, Koosha"]
[Black "Horcajuelo Rocamora, Martin"]
[WhiteFideId "12507440"]
[BlackFideId "24573027"]
[WhiteElo "2233"]
[BlackElo "2107"]
[Result "1-0"]
[Round "03"]
[TimeControl "180+2"]
[Date "2023.01.03"]
[WhiteClock "0:01:07"]
[BlackClock "0:01:31"]

1. c4 {[%clk 0:03:00]}  Nf6 {[%clk 0:02:49]} 2. Nc3 {[%clk 0:03:00]}  b6 {[%clk 0:02:50]} 3. e4 {[%clk 0:02:58]}  e5 {[%clk 0:02:47]} 4. d3 {[%clk 0:02:56]}  Bb7 {[%clk 0:02:47]} 5. g3 {[%clk 0:02:57]}  Bb4 {[%clk 0:02:46]} 6. Bg2 {[%clk 0:02:56]}  c6 {[%clk 0:02:47]} 7. Bd2 {[%clk 0:02:50]}  O-O {[%clk 0:02:38]} 8. Nge2 {[%clk 0:02:48]}  d6 {[%clk 0:02:35]} 9. O-O {[%clk 0:02:48]}  Nbd7 {[%clk 0:02:30]} 10. f4 {[%clk 0:02:46]}  Bc5+ {[%clk 0:02:30]} 11. Kh1 {[%clk 0:02:42]}  Ng4 {[%clk 0:02:28]} 12. Qe1 {[%clk 0:02:42]}  Ne3 {[%clk 0:02:28]} 13. Bxe3 {[%clk 0:02:38]}  Bxe3 {[%clk 0:02:29]} 14. f5 {[%clk 0:02:35]}  Nc5 {[%clk 0:02:25]} 15. Rd1 {[%clk 0:02:28]}  a5 {[%clk 0:02:16]} 16. Rf3 {[%clk 0:02:29]}  Bh6 {[%clk 0:02:15]} 17. g4 {[%clk 0:02:07]}  Bg5 {[%clk 0:02:14]} 18. Ng1 {[%clk 0:01:55]}  Rc8 {[%clk 0:02:07]} 19. Rh3 {[%clk 0:01:48]}  Nd7 {[%clk 0:01:55]} 20. Nf3 {[%clk 0:01:48]}  Bf4 {[%clk 0:01:55]} 21. Ne2 {[%clk 0:01:43]}  g5 {[%clk 0:01:53]} 22. Rh5 {[%clk 0:01:30]}  f6 {[%clk 0:01:53]} 23. h4 {[%clk 0:01:28]}  h6 {[%clk 0:01:51]} 24. Nxf4 {[%clk 0:01:19]}  exf4 {[%clk 0:01:50]} 25. Rxh6 {[%clk 0:01:19]}  Rf7 {[%clk 0:01:43]} 26. hxg5 {[%clk 0:01:13]}  fxg5 {[%clk 0:01:44]} 27. Nxg5 {[%clk 0:01:12]}  Qf8 {[%clk 0:01:32]} 28. Nxf7 {[%clk 0:01:11]}  Kxf7 {[%clk 0:01:33]} 29. Qh4 {[%clk 0:01:09]}  Ke8 {[%clk 0:01:31]} 30. Rh8 {[%clk 0:01:07]} 1-0


[Site "https://www.chess.com"]

[Event "Titled Tuesday Blitz January 03 Late 2023"]
[White "Kanakaris, Georgios"]
[Black "Paspuel, Trosky"]
[WhiteFideId "4209460"]
[BlackFideId "3602150"]
[WhiteElo "2391"]
[BlackElo "1721"]
[Result "1-0"]
[Round "03"]
[TimeControl "180+2"]
[Date "2023.01.03"]
[WhiteClock "0:00:23"]
[BlackClock "0:00:29"]

1. d4 {[%clk 0:03:00]}  Nf6 {[%clk 0:02:59]} 2. Nf3 {[%clk 0:03:01]}  e6 {[%clk 0:02:59]} 3. g3 {[%clk 0:03:01]}  b5 {[%clk 0:02:58]} 4. Bg5 {[%clk 0:02:59]}  Bb7 {[%clk 0:02:57]} 5. Nbd2 {[%clk 0:02:55]}  c5 {[%clk 0:02:47]} 6. e3 {[%clk 0:02:52]}  a6 {[%clk 0:02:43]} 7. a4 {[%clk 0:02:51]}  b4 {[%clk 0:02:43]} 8. Bd3 {[%clk 0:02:42]}  h6 {[%clk 0:02:41]} 9. Bxf6 {[%clk 0:02:41]}  Qxf6 {[%clk 0:02:42]} 10. O-O {[%clk 0:02:41]}  Qd8 {[%clk 0:02:35]} 11. c4 {[%clk 0:02:23]}  Be7 {[%clk 0:02:32]} 12. Nb3 {[%clk 0:02:19]}  d6 {[%clk 0:02:20]} 13. dxc5 {[%clk 0:02:02]}  dxc5 {[%clk 0:02:20]} 14. Qe2 {[%clk 0:02:00]}  O-O {[%clk 0:02:18]} 15. Rfd1 {[%clk 0:01:58]}  Qc7 {[%clk 0:02:19]} 16. Ne1 {[%clk 0:01:45]}  Nd7 {[%clk 0:02:14]} 17. Qc2 {[%clk 0:01:35]}  Qc6 {[%clk 0:02:07]} 18. f3 {[%clk 0:01:32]}  f5 {[%clk 0:02:02]} 19. Na5 {[%clk 0:01:29]}  Qc7 {[%clk 0:02:00]} 20. Nxb7 {[%clk 0:01:28]}  Qxb7 {[%clk 0:02:01]} 21. Bf1 {[%clk 0:01:19]}  Ne5 {[%clk 0:01:58]} 22. f4 {[%clk 0:01:06]}  Ng4 {[%clk 0:01:56]} 23. Bg2 {[%clk 0:01:05]}  Qc7 {[%clk 0:01:41]} 24. Bxa8 {[%clk 0:01:01]}  Rxa8 {[%clk 0:01:24]} 25. Qe2 {[%clk 0:00:51]}  Nf6 {[%clk 0:01:15]} 26. Nd3 {[%clk 0:00:47]}  Ne4 {[%clk 0:01:14]} 27. Ne5 {[%clk 0:00:46]}  Bf6 {[%clk 0:01:14]} 28. Rd7 {[%clk 0:00:42]}  Qa5 {[%clk 0:01:05]} 29. Qh5 {[%clk 0:00:31]}  Bxe5 {[%clk 0:00:51]} 30. fxe5 {[%clk 0:00:26]}  Ng5 {[%clk 0:00:29]} 31. Qg6 {[%clk 0:00:23]}  Nf3+ {[%clk 0:00:29]} 1-0


[Site "https://www.chess.com"]

[Event "Titled Tuesday Blitz January 03 Late 2023"]
[White "Zhao, Erick"]
[Black "Finkelstein, Alan"]
[WhiteFideId "30946930"]
[BlackFideId "30950961"]
[WhiteElo "2275"]
[BlackElo "2152"]
[Result "1-0"]
[Round "03"]
[TimeControl "180+2"]
[Date "2023.01.03"]
[WhiteClock "0:00:15"]
[BlackClock "0:00:03"]

1. e4 {[%clk 0:03:00]}  c5 {[%clk 0:02:59]} 2. Nf3 {[%clk 0:02:58]}  e6 {[%clk 0:02:59]} 3. c3 {[%clk 0:02:54]}  Nc6 {[%clk 0:02:59]} 4. d4 {[%clk 0:02:55]}  d5 {[%clk 0:03:00]} 5. exd5 {[%clk 0:02:55]}  Qxd5 {[%clk 0:03:00]} 6. Bb5 {[%clk 0:02:55]}  cxd4 {[%clk 0:02:37]} 7. Bxc6+ {[%clk 0:02:54]}  Qxc6 {[%clk 0:02:37]} 8. cxd4 {[%clk 0:02:54]}  Nf6 {[%clk 0:02:34]} 9. O-O {[%clk 0:02:55]}  Bd6 {[%clk 0:02:29]} 10. Nc3 {[%clk 0:02:53]}  O-O {[%clk 0:02:27]} 11. Bg5 {[%clk 0:02:54]}  Ne4 {[%clk 0:02:23]} 12. Rc1 {[%clk 0:02:39]}  Nxg5 {[%clk 0:02:15]} 13. Nxg5 {[%clk 0:02:37]}  Be7 {[%clk 0:02:04]} 14. d5 {[%clk 0:02:18]}  Qd7 {[%clk 0:01:40]} 15. Qh5 {[%clk 0:02:03]}  Bxg5 {[%clk 0:01:12]} 16. Qxg5 {[%clk 0:02:04]}  f6 {[%clk 0:01:12]} 17. dxe6 {[%clk 0:01:40]}  Qxe6 {[%clk 0:01:12]} 18. Qg3 {[%clk 0:01:40]}  Bd7 {[%clk 0:01:07]} 19. Rfe1 {[%clk 0:01:40]}  Qf7 {[%clk 0:01:07]} 20. h4 {[%clk 0:01:36]}  Bc6 {[%clk 0:01:07]} 21. b3 {[%clk 0:01:35]}  Rfe8 {[%clk 0:01:06]} 22. Ne2 {[%clk 0:01:35]}  Re4 {[%clk 0:00:57]} 23. Nf4 {[%clk 0:01:32]}  Rae8 {[%clk 0:00:56]} 24. Rxe4 {[%clk 0:01:29]}  Rxe4 {[%clk 0:00:56]} 25. Rd1 {[%clk 0:01:25]}  Qe8 {[%clk 0:00:47]} 26. Kh2 {[%clk 0:01:08]}  Qe5 {[%clk 0:00:33]} 27. Rd8+ {[%clk 0:00:27]}  Kf7 {[%clk 0:00:33]} 28. Nd3 {[%clk 0:00:28]}  Rxh4+ {[%clk 0:00:33]} 29. Kg1 {[%clk 0:00:24]}  Qxg3 {[%clk 0:00:32]} 30. fxg3 {[%clk 0:00:24]}  Re4 {[%clk 0:00:32]} 31. Kf2 {[%clk 0:00:24]}  Re7 {[%clk 0:00:31]} 32. Nb4 {[%clk 0:00:22]}  Be4 {[%clk 0:00:25]} 33. Ra8 {[%clk 0:00:22]}  a6 {[%clk 0:00:24]} 34. Ra7 {[%clk 0:00:22]}  Rd7 {[%clk 0:00:22]} 35. Nxa6 {[%clk 0:00:21]}  f5 {[%clk 0:00:10]} 36. Nc5 {[%clk 0:00:21]}  Rd2+ {[%clk 0:00:10]} 37. Ke3 {[%clk 0:00:20]}  Rxg2 {[%clk 0:00:10]} 38. Nxe4 {[%clk 0:00:20]}  fxe4 {[%clk 0:00:09]} 39. Rxb7+ {[%clk 0:00:21]}  Kg6 {[%clk 0:00:09]} 40. Kxe4 {[%clk 0:00:18]}  Rxa2 {[%clk 0:00:09]} 41. Kf4 {[%clk 0:00:17]}  Rb2 {[%clk 0:00:09]} 42. Rb6+ {[%clk 0:00:17]}  Kh5 {[%clk 0:00:08]} 43. g4+ {[%clk 0:00:14]}  Kh4 {[%clk 0:00:08]} 44. Rb7 {[%clk 0:00:15]}  Rf2+ {[%clk 0:00:08]} 45. Ke3 {[%clk 0:00:15]}  Rg2 {[%clk 0:00:05]} 46. Rxg7 {[%clk 0:00:16]}  Rg3+ {[%clk 0:00:05]} 47. Kf4 {[%clk 0:00:16]}  Kh3 {[%clk 0:00:01]} 48. Rxh7+ {[%clk 0:00:16]}  Kg2 {[%clk 0:00:02]} 49. Rb7 {[%clk 0:00:15]}  Kf2 {[%clk 0:00:01]} 50. g5 {[%clk 0:00:15]}  Rf3+ {[%clk 0:00:02]} 51. Kg4 {[%clk 0:00:16]}  Rg3+ {[%clk 0:00:03]} 52. Kh5 {[%clk 0:00:17]}  Kf3 {[%clk 0:00:03]} 53. Rb4 {[%clk 0:00:16]}  Ke3 {[%clk 0:00:02]} 54. g6 {[%clk 0:00:16]}  Kd3 {[%clk 0:00:03]} 55. Rg4 {[%clk 0:00:15]} 1-0


[Site "https://www.chess.com"]